[Event "Late-Titled-Tuesday-Blitz-April-16-2024"]
[Site "Chess.com"]
[Date "2024.04.16"]
[Round "1"]
[White "SmirnovTimofey2000"]
[Black "JiangoFett"]
[Result "0-1"]
[WhiteElo "1988"]
[BlackElo "2543"]
[TimeControl "180+1"]
[EndTime "14:06:10 PDT"]
[Termination "JiangoFett won by resignation"]

1. e4 {[%clk 0:02:58.1]} 1... c5 {[%clk 0:02:59.3]} 2. c3 {[%clk 0:02:56.1]}
2... Nf6 {[%clk 0:02:59.1]} 3. e5 {[%clk 0:02:52.2]} 3... Nd5 {[%clk 0:02:58.9]}
4. Nf3 {[%clk 0:02:51.8]} 4... Nc6 {[%clk 0:02:56.2]} 5. Bc4 {[%clk 0:02:51.6]}
5... Nb6 {[%clk 0:02:56.3]} 6. Bb3 {[%clk 0:02:51.4]} 6... c4 {[%clk 0:02:56.8]}
7. Bc2 {[%clk 0:02:51.5]} 7... d6 {[%clk 0:02:56.8]} 8. exd6 {[%clk 0:02:51.2]}
8... Qxd6 {[%clk 0:02:57.7]} 9. O-O {[%clk 0:02:51.6]} 9... Bg4 {[%clk
0:02:57.1]} 10. h3 {[%clk 0:02:49.1]} 10... Bh5 {[%clk 0:02:56.8]} 11. d4 {[%clk
0:02:40.4]} 11... cxd3 {[%clk 0:02:55]} 12. Bxd3 {[%clk 0:02:38.5]} 12... Rd8
{[%clk 0:02:51.6]} 13. Be2 {[%clk 0:02:37.4]} 13... Qc7 {[%clk 0:02:40.8]} 14.
Qc2 {[%clk 0:02:31.2]} 14... Bg6 {[%clk 0:02:40.9]} 15. Qb3 {[%clk 0:02:27.5]}
15... e6 {[%clk 0:02:35.8]} 16. Bg5 {[%clk 0:02:20.4]} 16... Rd5 {[%clk
0:02:24.2]} 17. Nbd2 {[%clk 0:02:06.3]} 17... h6 {[%clk 0:02:06.5]} 18. Bh4
{[%clk 0:02:04.1]} 18... Bd6 {[%clk 0:01:57.3]} 19. Nc4 {[%clk 0:01:55.3]} 19...
Bc5 {[%clk 0:01:16.4]} 20. Bg3 {[%clk 0:01:50.2]} 20... Qxg3 {[%clk 0:01:16.5]}
21. Nxb6 {[%clk 0:01:43.1]} 21... axb6 {[%clk 0:01:13.3]} 22. Kh1 {[%clk
0:01:38.5]} 22... Bxf2 {[%clk 0:01:03.5]} 23. Rad1 {[%clk 0:01:21.9]} 23... O-O
{[%clk 0:00:58.9]} 24. Rxd5 {[%clk 0:01:21.6]} 24... exd5 {[%clk 0:00:59.8]} 25.
Qxd5 {[%clk 0:01:20.6]} 25... Re8 {[%clk 0:00:53.6]} 26. Bc4 {[%clk 0:01:16.8]}
26... Bc5 {[%clk 0:00:53.1]} 27. Qd2 {[%clk 0:00:55.6]} 27... Bd6 {[%clk
0:00:52.2]} 28. Qf2 {[%clk 0:00:38.9]} 28... Qf4 {[%clk 0:00:45.8]} 29. Qxb6
{[%clk 0:00:25.2]} 29... Qxc4 {[%clk 0:00:45.3]} 0-1

[Event "Late-Titled-Tuesday-Blitz-April-16-2024"]
[Site "Chess.com"]
[Date "2024.04.16"]
[Round "1"]
[White "GMMikhailKazakov"]
[Black "BogdanDeac"]
[Result "0-1"]
[WhiteElo "2514"]
[BlackElo "3011"]
[TimeControl "180+1"]
[EndTime "14:06:11 PDT"]
[Termination "BogdanDeac won on time"]

1. d4 {[%clk 0:02:57.6]} 1... Nf6 {[%clk 0:02:56.7]} 2. c4 {[%clk 0:02:57]} 2...
e6 {[%clk 0:02:56.3]} 3. g3 {[%clk 0:02:56.4]} 3... d5 {[%clk 0:02:56.1]} 4. Bg2
{[%clk 0:02:55.6]} 4... dxc4 {[%clk 0:02:56.6]} 5. Nf3 {[%clk 0:02:44.2]} 5...
a6 {[%clk 0:02:55.7]} 6. O-O {[%clk 0:02:43.2]} 6... Nc6 {[%clk 0:02:55.3]} 7.
Bg5 {[%clk 0:02:41.9]} 7... Be7 {[%clk 0:02:52.4]} 8. Nc3 {[%clk 0:02:36.4]}
8... O-O {[%clk 0:02:42.8]} 9. e4 {[%clk 0:02:34.8]} 9... h6 {[%clk 0:02:38.1]}
10. Bxf6 {[%clk 0:02:28.4]} 10... Bxf6 {[%clk 0:02:37.7]} 11. e5 {[%clk
0:02:27.3]} 11... Be7 {[%clk 0:02:37.6]} 12. a3 {[%clk 0:02:14.5]} 12... Rb8
{[%clk 0:02:33.3]} 13. Qe2 {[%clk 0:01:59]} 13... Nxd4 {[%clk 0:02:15.1]} 14.
Qxc4 {[%clk 0:01:58.2]} 14... Nxf3+ {[%clk 0:02:10.4]} 15. Bxf3 {[%clk
0:01:59.1]} 15... b5 {[%clk 0:02:09.5]} 16. Qe2 {[%clk 0:01:51.4]} 16... c5
{[%clk 0:02:09.2]} 17. Be4 {[%clk 0:01:29.3]} 17... Bb7 {[%clk 0:01:59.3]} 18.
Bxb7 {[%clk 0:01:21.8]} 18... Rxb7 {[%clk 0:01:59.2]} 19. a4 {[%clk 0:01:21.5]}
19... c4 {[%clk 0:01:51.5]} 20. axb5 {[%clk 0:01:20.5]} 20... axb5 {[%clk
0:01:52.4]} 21. Ra6 {[%clk 0:01:02.1]} 21... Qb8 {[%clk 0:01:22.3]} 22. Rd1
{[%clk 0:00:56.2]} 22... Rc8 {[%clk 0:01:14.2]} 23. f4 {[%clk 0:00:34.6]} 23...
b4 {[%clk 0:01:13.2]} 24. Ne4 {[%clk 0:00:34.8]} 24... c3 {[%clk 0:01:13.6]} 25.
bxc3 {[%clk 0:00:27.5]} 25... bxc3 {[%clk 0:01:13.6]} 26. Nd6 {[%clk 0:00:28]}
26... Bxd6 {[%clk 0:01:05.8]} 27. Raxd6 {[%clk 0:00:27.9]} 27... c2 {[%clk
0:01:05.5]} 28. Rc1 {[%clk 0:00:28.2]} 28... Rb1 {[%clk 0:01:02.6]} 29. Qf1
{[%clk 0:00:02.2]} 29... Rxc1 {[%clk 0:01:02.3]} 0-1

[Event "Late-Titled-Tuesday-Blitz-April-16-2024"]
[Site "Chess.com"]
[Date "2024.04.16"]
[Round "1"]
[White "GaiozNigalidze"]
[Black "serefra99"]
[Result "1-0"]
[WhiteElo "2710"]
[BlackElo "2396"]
[TimeControl "180+1"]
[EndTime "14:06:14 PDT"]
[Termination "GaiozNigalidze won by resignation"]

1. d4 {[%clk 0:03:00.9]} 1... d5 {[%clk 0:02:59.1]} 2. c4 {[%clk 0:03:01.2]}
2... e6 {[%clk 0:02:53.1]} 3. cxd5 {[%clk 0:03:00.7]} 3... exd5 {[%clk
0:02:51.8]} 4. Nc3 {[%clk 0:03:01.2]} 4... c6 {[%clk 0:02:49.5]} 5. Nf3 {[%clk
0:03:00.2]} 5... Bf5 {[%clk 0:02:31.6]} 6. g3 {[%clk 0:02:58.7]} 6... Nf6 {[%clk
0:02:28.3]} 7. Bg2 {[%clk 0:02:58.3]} 7... Be7 {[%clk 0:02:28.8]} 8. O-O {[%clk
0:02:57.6]} 8... O-O {[%clk 0:02:29.3]} 9. Bf4 {[%clk 0:02:57.5]} 9... h6 {[%clk
0:02:28.7]} 10. h3 {[%clk 0:02:56]} 10... Re8 {[%clk 0:02:27.7]} 11. g4 {[%clk
0:02:55.8]} 11... Bh7 {[%clk 0:02:26.7]} 12. Ne5 {[%clk 0:02:55.4]} 12... Nfd7
{[%clk 0:02:25.3]} 13. Nd3 {[%clk 0:02:48]} 13... Nf6 {[%clk 0:02:24]} 14. Nc5
{[%clk 0:02:39.2]} 14... Bxc5 {[%clk 0:02:16.8]} 15. dxc5 {[%clk 0:02:38.9]}
15... Nbd7 {[%clk 0:02:17.7]} 16. Bd6 {[%clk 0:02:27]} 16... Ne4 {[%clk
0:02:18.1]} 17. Nxe4 {[%clk 0:02:00.4]} 17... Bxe4 {[%clk 0:02:19]} 18. e3
{[%clk 0:02:00.5]} 18... Bxg2 {[%clk 0:01:58.8]} 19. Kxg2 {[%clk 0:02:00.4]}
19... Nf6 {[%clk 0:01:59.7]} 20. Qd4 {[%clk 0:01:54.9]} 20... Re4 {[%clk
0:01:57.9]} 21. Qd3 {[%clk 0:01:46.6]} 21... Qd7 {[%clk 0:01:56.2]} 22. f3
{[%clk 0:01:39]} 22... Re6 {[%clk 0:01:55.1]} 23. h4 {[%clk 0:01:24]} 23... Rae8
{[%clk 0:01:54.9]} 24. Bf4 {[%clk 0:01:23.7]} 24... Nh7 {[%clk 0:01:53.9]} 25.
Rae1 {[%clk 0:01:10.8]} 25... Nf8 {[%clk 0:01:53.6]} 26. h5 {[%clk 0:01:07.7]}
26... Qe7 {[%clk 0:01:53.4]} 27. b4 {[%clk 0:01:07]} 27... Qf6 {[%clk
0:01:50.7]} 28. a3 {[%clk 0:01:04.4]} 28... g5 {[%clk 0:01:25.8]} 29. hxg6
{[%clk 0:01:02.9]} 29... Qxg6 {[%clk 0:01:26.2]} 30. Qd4 {[%clk 0:00:57.6]}
30... h5 {[%clk 0:01:24.8]} 31. Kf2 {[%clk 0:00:50.6]} 31... hxg4 {[%clk
0:00:53.3]} 32. Rh1 {[%clk 0:00:49.8]} 32... f6 {[%clk 0:00:51.8]} 33. Rh4
{[%clk 0:00:35.5]} 33... g3+ {[%clk 0:00:49.1]} 34. Bxg3 {[%clk 0:00:34]} 34...
R8e7 {[%clk 0:00:45.6]} 35. Rg4 {[%clk 0:00:32.8]} 1-0

[Event "Late-Titled-Tuesday-Blitz-April-16-2024"]
[Site "Chess.com"]
[Date "2024.04.16"]
[Round "1"]
[White "micke12a"]
[Black "FontVella8"]
[Result "0-1"]
[WhiteElo "2418"]
[BlackElo "2755"]
[TimeControl "180+1"]
[EndTime "14:06:15 PDT"]
[Termination "FontVella8 won by resignation"]

1. e4 {[%clk 0:02:58.4]} 1... c6 {[%clk 0:02:49.3]} 2. d4 {[%clk 0:02:57.7]}
2... d5 {[%clk 0:02:50.2]} 3. e5 {[%clk 0:02:57.5]} 3... Bf5 {[%clk 0:02:50]} 4.
h4 {[%clk 0:02:57.8]} 4... h5 {[%clk 0:02:50.1]} 5. c4 {[%clk 0:02:57.6]} 5...
e6 {[%clk 0:02:49.2]} 6. Nc3 {[%clk 0:02:55.5]} 6... dxc4 {[%clk 0:02:49.2]} 7.
Bxc4 {[%clk 0:02:54.7]} 7... Nd7 {[%clk 0:02:49.9]} 8. Nge2 {[%clk 0:02:52.4]}
8... Ne7 {[%clk 0:02:49.5]} 9. Ng3 {[%clk 0:02:52.3]} 9... Bg6 {[%clk
0:02:49.2]} 10. O-O {[%clk 0:02:51]} 10... Nf5 {[%clk 0:02:47.8]} 11. Bg5 {[%clk
0:02:45.7]} 11... Be7 {[%clk 0:02:41]} 12. Bxe7 {[%clk 0:02:44.1]} 12... Qxe7
{[%clk 0:02:40.9]} 13. Nxf5 {[%clk 0:02:43.6]} 13... Bxf5 {[%clk 0:02:41.3]} 14.
g3 {[%clk 0:02:43.1]} 14... g5 {[%clk 0:02:35.4]} 15. hxg5 {[%clk 0:02:31.2]}
15... Qxg5 {[%clk 0:02:33.1]} 16. Qc1 {[%clk 0:02:31.9]} 16... Qxc1 {[%clk
0:02:28.8]} 17. Raxc1 {[%clk 0:02:29.6]} 17... Ke7 {[%clk 0:02:28.3]} 18. f3
{[%clk 0:02:26.1]} 18... Rag8 {[%clk 0:02:26.5]} 19. Kf2 {[%clk 0:02:25.2]}
19... c5 {[%clk 0:02:00.3]} 20. dxc5 {[%clk 0:02:18]} 20... Nxe5 {[%clk
0:01:59.3]} 21. Be2 {[%clk 0:02:13.3]} 21... h4 {[%clk 0:01:34.4]} 22. g4 {[%clk
0:02:13.3]} 22... Bd3 {[%clk 0:01:34.5]} 23. Rcd1 {[%clk 0:02:03.6]} 23... Rd8
{[%clk 0:01:31.1]} 24. b4 {[%clk 0:01:57.1]} 24... Rd7 {[%clk 0:01:18.1]} 25. a3
{[%clk 0:01:49.9]} 25... Rhd8 {[%clk 0:01:11.6]} 26. Bxd3 {[%clk 0:01:49.8]}
26... Rxd3 {[%clk 0:01:09.1]} 27. Rxd3 {[%clk 0:01:20.5]} 27... Rxd3 {[%clk
0:01:07.1]} 28. Nb5 {[%clk 0:01:14.7]} 28... Rxf3+ {[%clk 0:01:05.9]} 29. Kg2
{[%clk 0:01:14]} 29... h3+ {[%clk 0:01:05.5]} 30. Kg1 {[%clk 0:01:13.2]} 30...
Rxf1+ {[%clk 0:01:05.4]} 31. Kxf1 {[%clk 0:01:13.4]} 31... Nxg4 {[%clk
0:01:06.1]} 32. Nxa7 {[%clk 0:01:11.5]} 32... f5 {[%clk 0:01:03.4]} 33. b5
{[%clk 0:01:01.2]} 33... f4 {[%clk 0:00:55.5]} 34. c6 {[%clk 0:00:47.3]} 34...
h2 {[%clk 0:00:47]} 35. Kg2 {[%clk 0:00:42.3]} 35... f3+ {[%clk 0:00:46.5]} 36.
Kh1 {[%clk 0:00:41.2]} 36... f2 {[%clk 0:00:42.7]} 0-1

[Event "Late-Titled-Tuesday-Blitz-April-16-2024"]
[Site "Chess.com"]
[Date "2024.04.16"]
[Round "1"]
[White "DraningWaterHi"]
[Black "Koalaskakistis"]
[Result "0-1"]
[WhiteElo "2224"]
[BlackElo "2566"]
[TimeControl "180+1"]
[EndTime "14:06:20 PDT"]
[Termination "Koalaskakistis won by checkmate"]

1. d4 {[%clk 0:02:59.7]} 1... Nf6 {[%clk 0:02:54.9]} 2. c4 {[%clk 0:02:58.8]}
2... c5 {[%clk 0:02:55.4]} 3. d5 {[%clk 0:02:58.8]} 3... e6 {[%clk 0:02:56]} 4.
Nc3 {[%clk 0:02:54.2]} 4... exd5 {[%clk 0:02:56.2]} 5. cxd5 {[%clk 0:02:55.1]}
5... d6 {[%clk 0:02:56.3]} 6. g3 {[%clk 0:02:52.5]} 6... g6 {[%clk 0:02:56.7]}
7. Bg2 {[%clk 0:02:52]} 7... Bg7 {[%clk 0:02:57.3]} 8. Nf3 {[%clk 0:02:52.5]}
8... O-O {[%clk 0:02:57.7]} 9. O-O {[%clk 0:02:53.1]} 9... Bg4 {[%clk
0:02:54.2]} 10. h3 {[%clk 0:02:52.1]} 10... Bxf3 {[%clk 0:02:54.1]} 11. Bxf3
{[%clk 0:02:53]} 11... Na6 {[%clk 0:02:50.7]} 12. Bf4 {[%clk 0:02:51.6]} 12...
Nc7 {[%clk 0:02:51]} 13. a4 {[%clk 0:02:50.1]} 13... b6 {[%clk 0:02:47.6]} 14.
e4 {[%clk 0:02:49.7]} 14... a6 {[%clk 0:02:34.3]} 15. Be2 {[%clk 0:02:48.9]}
15... Qe7 {[%clk 0:02:23.7]} 16. Bd3 {[%clk 0:02:47.8]} 16... Nd7 {[%clk
0:02:23.7]} 17. Be3 {[%clk 0:02:44.1]} 17... Ne5 {[%clk 0:02:02.3]} 18. Bc2
{[%clk 0:02:43.2]} 18... Nc4 {[%clk 0:01:55.5]} 19. Bc1 {[%clk 0:02:43]} 19...
b5 {[%clk 0:01:54.3]} 20. Qe2 {[%clk 0:02:33.1]} 20... Bxc3 {[%clk 0:01:48.9]}
21. bxc3 {[%clk 0:02:32.3]} 21... Nxd5 {[%clk 0:01:49.6]} 22. Bh6 {[%clk
0:02:22.6]} 22... Rfe8 {[%clk 0:01:46.9]} 23. Qd3 {[%clk 0:02:18.7]} 23... Nf6
{[%clk 0:01:46.1]} 24. f3 {[%clk 0:02:13.4]} 24... Nh5 {[%clk 0:01:39.4]} 25.
Kg2 {[%clk 0:02:11.9]} 25... Qf6 {[%clk 0:01:21.4]} 26. f4 {[%clk 0:02:00.6]}
26... d5 {[%clk 0:01:11]} 27. Bg5 {[%clk 0:01:57.6]} 27... Qb6 {[%clk 0:01:04]}
28. a5 {[%clk 0:01:51.3]} 28... Qb7 {[%clk 0:00:52]} 29. Rfe1 {[%clk 0:01:44.9]}
29... dxe4 {[%clk 0:00:46.9]} 30. Qe2 {[%clk 0:01:42.4]} 30... e3+ {[%clk
0:00:34.6]} 31. Kh2 {[%clk 0:01:41.1]} 31... Kg7 {[%clk 0:00:29.2]} 32. Rad1
{[%clk 0:01:39.6]} 32... h6 {[%clk 0:00:27.2]} 33. Bh4 {[%clk 0:01:38.6]} 33...
Nd2 {[%clk 0:00:25.8]} 34. Rxd2 {[%clk 0:01:28.2]} 34... exd2 {[%clk 0:00:26.7]}
35. Qxd2 {[%clk 0:01:28.9]} 35... Qf3 {[%clk 0:00:23.1]} 36. Bd1 {[%clk
0:01:22]} 36... Qc6 {[%clk 0:00:18.7]} 37. Bxh5 {[%clk 0:01:21.4]} 37... gxh5
{[%clk 0:00:19.6]} 38. f5 {[%clk 0:01:19.2]} 38... Rxe1 {[%clk 0:00:18.7]} 39.
f6+ {[%clk 0:01:18]} 39... Kg8 {[%clk 0:00:15.7]} 40. Qxe1 {[%clk 0:01:18.9]}
40... Re8 {[%clk 0:00:12.9]} 41. Qd1 {[%clk 0:01:13.4]} 41... Qe4 {[%clk
0:00:11.7]} 42. Qxh5 {[%clk 0:01:12.1]} 42... Qc2+ {[%clk 0:00:10.7]} 43. Kg1
{[%clk 0:01:10.2]} 43... Re1# {[%clk 0:00:10.9]} 0-1

[Event "Late-Titled-Tuesday-Blitz-April-16-2024"]
[Site "Chess.com"]
[Date "2024.04.16"]
[Round "1"]
[White "VD_coach"]
[Black "Cluke86"]
[Result "1-0"]
[WhiteElo "2626"]
[BlackElo "2323"]
[TimeControl "180+1"]
[EndTime "14:06:22 PDT"]
[Termination "VD_coach won by resignation"]

1. Nf3 {[%clk 0:03:00.9]} 1... Nf6 {[%clk 0:02:53.4]} 2. d4 {[%clk 0:02:57.1]}
2... d6 {[%clk 0:02:53]} 3. c4 {[%clk 0:02:58]} 3... g6 {[%clk 0:02:52.1]} 4. g3
{[%clk 0:02:58.2]} 4... Bg7 {[%clk 0:02:51.8]} 5. Bg2 {[%clk 0:02:59]} 5... O-O
{[%clk 0:02:51.8]} 6. O-O {[%clk 0:02:59.9]} 6... c5 {[%clk 0:02:51.1]} 7. Nc3
{[%clk 0:02:56.3]} 7... Bf5 {[%clk 0:02:49.4]} 8. dxc5 {[%clk 0:02:28.3]} 8...
dxc5 {[%clk 0:02:47.4]} 9. Ne5 {[%clk 0:02:28.1]} 9... Qc8 {[%clk 0:02:34.3]}
10. Qb3 {[%clk 0:02:19.7]} 10... Ne4 {[%clk 0:02:19]} 11. Nxe4 {[%clk
0:01:43.9]} 11... Bxe5 {[%clk 0:02:18.1]} 12. Nf6+ {[%clk 0:01:37.9]} 12... Bxf6
{[%clk 0:02:10.6]} 13. Bxb7 {[%clk 0:01:38.8]} 13... Bc2 {[%clk 0:02:03.4]} 14.
Bxc8 {[%clk 0:01:31.1]} 14... Bxb3 {[%clk 0:02:02.7]} 15. Bb7 {[%clk 0:01:31.6]}
15... Bxc4 {[%clk 0:01:59.8]} 16. Bxa8 {[%clk 0:01:30.1]} 16... Bxe2 {[%clk
0:01:56.4]} 17. Re1 {[%clk 0:01:30.1]} 17... Bd3 {[%clk 0:01:45.7]} 18. Bf4
{[%clk 0:01:29.4]} 18... Na6 {[%clk 0:01:29.8]} 19. Be4 {[%clk 0:01:15.8]} 19...
Bxe4 {[%clk 0:01:13.4]} 20. Rxe4 {[%clk 0:01:16.7]} 20... Bxb2 {[%clk
0:01:13.3]} 21. Rb1 {[%clk 0:01:15.8]} 21... Bf6 {[%clk 0:01:09.1]} 22. Rb7
{[%clk 0:01:15.6]} 22... Nb4 {[%clk 0:01:07.1]} 23. Be5 {[%clk 0:01:09.4]} 23...
Nd5 {[%clk 0:00:40.4]} 24. Bxf6 {[%clk 0:01:06.2]} 24... exf6 {[%clk 0:00:41.3]}
25. Rxa7 {[%clk 0:01:03.3]} 25... Rc8 {[%clk 0:00:39.2]} 26. Rea4 {[%clk
0:01:01]} 26... c4 {[%clk 0:00:28.5]} 27. Ra8 {[%clk 0:01:00.1]} 27... Rxa8
{[%clk 0:00:26.4]} 28. Rxa8+ {[%clk 0:01:01]} 28... Kg7 {[%clk 0:00:26.5]} 29.
Rc8 {[%clk 0:01:00.7]} 29... c3 {[%clk 0:00:26.7]} 30. Rc5 {[%clk 0:00:53.7]}
30... Nb4 {[%clk 0:00:14.8]} 31. a3 {[%clk 0:00:53.1]} 1-0

[Event "Late-Titled-Tuesday-Blitz-April-16-2024"]
[Site "Chess.com"]
[Date "2024.04.16"]
[Round "1"]
[White "chucksterf10"]
[Black "JaackCamel"]
[Result "1-0"]
[WhiteElo "2580"]
[BlackElo "2231"]
[TimeControl "180+1"]
[EndTime "14:06:22 PDT"]
[Termination "chucksterf10 won on time"]

1. b3 {[%clk 0:02:59.7]} 1... e5 {[%clk 0:02:55]} 2. Bb2 {[%clk 0:02:59.4]} 2...
Nc6 {[%clk 0:02:52.5]} 3. e3 {[%clk 0:02:57.8]} 3... a6 {[%clk 0:02:50.4]} 4.
Nf3 {[%clk 0:02:55.8]} 4... d6 {[%clk 0:02:48]} 5. d4 {[%clk 0:02:55.3]} 5... e4
{[%clk 0:02:45.9]} 6. Nfd2 {[%clk 0:02:53.9]} 6... d5 {[%clk 0:02:42.8]} 7. c4
{[%clk 0:02:54.3]} 7... Be6 {[%clk 0:02:33.7]} 8. Nc3 {[%clk 0:02:50.8]} 8...
Nf6 {[%clk 0:02:28.5]} 9. cxd5 {[%clk 0:02:50.3]} 9... Bxd5 {[%clk 0:02:25.5]}
10. Nxd5 {[%clk 0:02:50.3]} 10... Qxd5 {[%clk 0:02:24.4]} 11. Bc4 {[%clk
0:02:50.8]} 11... Qf5 {[%clk 0:02:14.9]} 12. O-O {[%clk 0:02:44.8]} 12... Rd8
{[%clk 0:02:08]} 13. f3 {[%clk 0:02:43.1]} 13... Qg5 {[%clk 0:02:00.9]} 14. Nxe4
{[%clk 0:02:36.3]} 14... Qxe3+ {[%clk 0:01:47.4]} 15. Kh1 {[%clk 0:02:36]} 15...
Nxe4 {[%clk 0:01:13.5]} 16. fxe4 {[%clk 0:02:36.9]} 16... f6 {[%clk 0:01:03.4]}
17. e5 {[%clk 0:02:06.4]} 17... Bb4 {[%clk 0:00:32.7]} 18. exf6 {[%clk
0:01:57.6]} 18... g6 {[%clk 0:00:19.9]} 19. d5 {[%clk 0:01:50.6]} 19... Ne5
{[%clk 0:00:17.4]} 20. Bxe5 {[%clk 0:01:41.2]} 20... Qxe5 {[%clk 0:00:16.4]} 21.
a3 {[%clk 0:01:41.9]} 21... Bc3 {[%clk 0:00:15.9]} 22. Rc1 {[%clk 0:01:38.9]}
22... O-O {[%clk 0:00:12.2]} 23. Qf3 {[%clk 0:01:28.9]} 23... Rd6 {[%clk
0:00:11.5]} 24. Qxc3 {[%clk 0:01:27.9]} 24... Qh5 {[%clk 0:00:10.4]} 25. Rce1
{[%clk 0:01:23]} 25... Qg4 {[%clk 0:00:09.2]} 26. Re7 {[%clk 0:01:22.2]} 26...
Qg5 {[%clk 0:00:05.7]} 27. Rg7+ {[%clk 0:01:21.2]} 27... Kh8 {[%clk 0:00:05.9]}
28. f7 {[%clk 0:01:19.9]} 28... Rf6 {[%clk 0:00:04.5]} 29. Rxf6 {[%clk
0:00:58.2]} 29... Kxg7 {[%clk 0:00:03.5]} 30. Rf5+ {[%clk 0:00:58.8]} 30... Kh6
{[%clk 0:00:04]} 31. Qh3+ {[%clk 0:00:56.8]} 31... Qh5 {[%clk 0:00:01.6]} 32.
Qe3+ {[%clk 0:00:57]} 32... Kg7 {[%clk 0:00:01.5]} 33. Qe5+ {[%clk 0:00:56.9]}
1-0

[Event "Late-Titled-Tuesday-Blitz-April-16-2024"]
[Site "Chess.com"]
[Date "2024.04.16"]
[Round "1"]
[White "JaloliddinIlkhomi"]
[Black "Road2GM3000"]
[Result "1-0"]
[WhiteElo "2786"]
[BlackElo "2439"]
[TimeControl "180+1"]
[EndTime "14:06:23 PDT"]
[Termination "JaloliddinIlkhomi won by checkmate"]

1. Nf3 {[%clk 0:02:57.5]} 1... d5 {[%clk 0:02:59.6]} 2. d4 {[%clk 0:02:57.2]}
2... Nf6 {[%clk 0:02:59.2]} 3. Bf4 {[%clk 0:02:57.7]} 3... c6 {[%clk 0:02:59.1]}
4. e3 {[%clk 0:02:58.2]} 4... Qb6 {[%clk 0:02:57.9]} 5. b3 {[%clk 0:02:57.1]}
5... Bf5 {[%clk 0:02:57.4]} 6. Bd3 {[%clk 0:02:56.8]} 6... Bg6 {[%clk
0:02:56.5]} 7. O-O {[%clk 0:02:55.8]} 7... e6 {[%clk 0:02:57.2]} 8. Nbd2 {[%clk
0:02:56.4]} 8... Nbd7 {[%clk 0:02:55.7]} 9. Ne5 {[%clk 0:02:56.8]} 9... Nxe5
{[%clk 0:02:55.1]} 10. Bxe5 {[%clk 0:02:57.7]} 10... Be7 {[%clk 0:02:53.2]} 11.
Qe2 {[%clk 0:02:56.2]} 11... O-O {[%clk 0:02:53.7]} 12. c4 {[%clk 0:02:56.6]}
12... Nd7 {[%clk 0:02:49.5]} 13. Bg3 {[%clk 0:02:56.4]} 13... Rac8 {[%clk
0:02:30.5]} 14. Rac1 {[%clk 0:02:55.5]} 14... Qa5 {[%clk 0:02:27.8]} 15. Nf3
{[%clk 0:02:53.3]} 15... Rfe8 {[%clk 0:02:22.5]} 16. Ne5 {[%clk 0:02:52.8]}
16... Nxe5 {[%clk 0:02:21.9]} 17. Bxe5 {[%clk 0:02:53.7]} 17... Qd8 {[%clk
0:02:02.9]} 18. Bg3 {[%clk 0:02:43.3]} 18... Bd6 {[%clk 0:01:59.5]} 19. Rfd1
{[%clk 0:02:39.4]} 19... Bxd3 {[%clk 0:01:55.7]} 20. Qxd3 {[%clk 0:02:39.6]}
20... Bxg3 {[%clk 0:01:56.2]} 21. hxg3 {[%clk 0:02:40.5]} 21... h6 {[%clk
0:01:45.1]} 22. b4 {[%clk 0:02:40.7]} 22... Qe7 {[%clk 0:01:39]} 23. a3 {[%clk
0:02:36.1]} 23... Rc7 {[%clk 0:01:34.7]} 24. f4 {[%clk 0:02:34.2]} 24... Rec8
{[%clk 0:01:33.4]} 25. c5 {[%clk 0:02:33.9]} 25... Re8 {[%clk 0:01:27.6]} 26. a4
{[%clk 0:02:34.3]} 26... f6 {[%clk 0:01:27.1]} 27. e4 {[%clk 0:02:32.8]} 27...
dxe4 {[%clk 0:01:13.1]} 28. Qxe4 {[%clk 0:02:32.8]} 28... Rd7 {[%clk 0:01:12.6]}
29. b5 {[%clk 0:02:31.8]} 29... cxb5 {[%clk 0:01:08.9]} 30. axb5 {[%clk
0:02:32.3]} 30... Red8 {[%clk 0:01:09.6]} 31. Rc4 {[%clk 0:02:24.9]} 31... Rd5
{[%clk 0:01:00.9]} 32. Re1 {[%clk 0:02:24]} 32... Kf7 {[%clk 0:00:57.2]} 33. c6
{[%clk 0:02:18.5]} 33... Rxb5 {[%clk 0:00:45.6]} 34. c7 {[%clk 0:02:03.7]} 34...
Rc8 {[%clk 0:00:45.8]} 35. g4 {[%clk 0:01:54.9]} 35... Qd6 {[%clk 0:00:39.2]}
36. Rec1 {[%clk 0:01:34.5]} 36... g5 {[%clk 0:00:27.5]} 37. Qh7+ {[%clk
0:01:29.2]} 37... Ke8 {[%clk 0:00:27.8]} 38. Qxh6 {[%clk 0:01:14.6]} 38... Qxf4
{[%clk 0:00:17.3]} 39. Re1 {[%clk 0:01:14.5]} 39... Qd6 {[%clk 0:00:07.3]} 40.
Qxf6 {[%clk 0:01:13.5]} 40... Rxc7 {[%clk 0:00:07.3]} 41. Rxe6+ {[%clk
0:01:13.4]} 41... Qxe6 {[%clk 0:00:07.5]} 42. Qxe6+ {[%clk 0:01:14.3]} 42... Re7
{[%clk 0:00:07.9]} 43. Rc8# {[%clk 0:01:14.9]} 1-0

[Event "Late-Titled-Tuesday-Blitz-April-16-2024"]
[Site "Chess.com"]
[Date "2024.04.16"]
[Round "1"]
[White "OPQRC"]
[Black "trriinu"]
[Result "1-0"]
[WhiteElo "2592"]
[BlackElo "2256"]
[TimeControl "180+1"]
[EndTime "14:06:23 PDT"]
[Termination "OPQRC won by resignation"]

1. g3 {[%clk 0:02:33.7]} 1... g6 {[%clk 0:02:57.7]} 2. Bg2 {[%clk 0:02:34.2]}
2... Bg7 {[%clk 0:02:58.4]} 3. d3 {[%clk 0:02:24.7]} 3... Nf6 {[%clk 0:02:57.2]}
4. e4 {[%clk 0:02:24.8]} 4... d6 {[%clk 0:02:57.6]} 5. Ne2 {[%clk 0:02:23.7]}
5... O-O {[%clk 0:02:58.1]} 6. O-O {[%clk 0:02:23.5]} 6... e5 {[%clk 0:02:58.5]}
7. Nbc3 {[%clk 0:02:18.7]} 7... Nc6 {[%clk 0:02:57.6]} 8. h3 {[%clk 0:02:15.1]}
8... Be6 {[%clk 0:02:55.8]} 9. Kh2 {[%clk 0:02:14.1]} 9... Qc8 {[%clk
0:02:51.8]} 10. f4 {[%clk 0:02:12.7]} 10... a6 {[%clk 0:02:41.3]} 11. g4 {[%clk
0:02:09.1]} 11... Bxg4 {[%clk 0:02:31.6]} 12. hxg4 {[%clk 0:02:05.4]} 12... Qxg4
{[%clk 0:02:30.3]} 13. Bh3 {[%clk 0:01:45.3]} 13... Qh4 {[%clk 0:02:02.7]} 14.
Qe1 {[%clk 0:01:44.3]} 14... Qh5 {[%clk 0:01:48.2]} 15. Qg3 {[%clk 0:01:37.9]}
15... exf4 {[%clk 0:01:27.6]} 16. Nxf4 {[%clk 0:01:32.1]} 16... Qa5 {[%clk
0:01:27.5]} 17. Kh1 {[%clk 0:01:29]} 17... Nd4 {[%clk 0:01:23.7]} 18. Bd2 {[%clk
0:01:24.2]} 18... Nxc2 {[%clk 0:01:07.7]} 19. Rac1 {[%clk 0:01:23.5]} 19... Nd4
{[%clk 0:01:06.3]} 20. Qf2 {[%clk 0:01:15.8]} 20... Qe5 {[%clk 0:00:58.6]} 21.
Ncd5 {[%clk 0:01:06.5]} 21... Nxd5 {[%clk 0:00:42.7]} 22. Nxd5 {[%clk
0:01:07.4]} 22... Qh5 {[%clk 0:00:42.2]} 23. Kg2 {[%clk 0:00:51.8]} 23... f5
{[%clk 0:00:29.3]} 24. Rxc7 {[%clk 0:00:45.5]} 24... fxe4 {[%clk 0:00:28.6]} 25.
Rxg7+ {[%clk 0:00:45.3]} 25... Kxg7 {[%clk 0:00:19.3]} 26. Qxd4+ {[%clk
0:00:44.9]} 26... Kg8 {[%clk 0:00:17]} 27. Be6+ {[%clk 0:00:43.8]} 27... Rf7
{[%clk 0:00:16.4]} 28. Bxf7+ {[%clk 0:00:43.8]} 28... Kf8 {[%clk 0:00:16.8]} 29.
Bxg6+ {[%clk 0:00:42.4]} 29... Qf3+ {[%clk 0:00:16.9]} 30. Rxf3+ {[%clk
0:00:41.5]} 30... exf3+ {[%clk 0:00:17.4]} 31. Kxf3 {[%clk 0:00:41.4]} 31...
hxg6 {[%clk 0:00:17.8]} 32. Qf6+ {[%clk 0:00:39.2]} 1-0